[Event "16th Serbian-ch Women 2022"]
[Site "Bajina Basta"]
[Date "2022.12.10"]
[Round "5.4"]
[White "Chelushkina, Irina"]
[Black "Drljevic, Ljilja"]
[Result "1-0"]
[ECO "B07"]
[WhiteElo "2173"]
[BlackElo "2175"]
[Annotator "TA"]
[PlyCount "89"]
[EventDate "2022.12.06"]
[EventType "tourn"]
[EventCountry "SRB"]
[SourceTitle "playchess.com"]
[Source "ChessBase"]
[SourceQuality "1"]
[TimeControl "40/5400+30:1800+30"]

{[%evp 18,89,29,7,14,0,0,0,0,0,36,4,56,13,0,13,2,14,14,8,56,20,39,25,41,25,162,177,349,277,287,285,270,259,319,333,316,311,323,325,435,227,212,103,239,87,194,160,181,16,4722,4710,4132,381,384,384,433,287,514,484,619,619,612,608,593,580,618,614,29974,29975,29967,4718,4714,202]} 1. e4 {[%emt 0:00:04]} d6 {[%emt 0:00:17]} 2. d4 {[%emt 0:00:07]} g6 {[%emt 0:00:29]} 3. Nc3 {[%emt 0:00:05]} Bg7 {[%emt 0:00:11]} 4. g3 {[%emt 0:01:45]} Nf6 {[%emt 0:00:28]} 5. Bg2 {[%emt 0:00:05]} O-O {[%emt 0:00:07]} 6. h3 {[%emt 0:01:04]} Nbd7 {[%emt 0:01:32]} 7. Nge2 {[%emt 0:00:07]} Rb8 {[%emt 0:01:47]} 8. a4 {[%emt 0:00:16]} c5 {[%emt 0:04:12]} 9. Be3 {[%emt 0:01:41]} b6 {[%emt 0:00:37]} 10. O-O {[%emt 0:03:30]} a6 {[%emt 0:14:21] B07: Pirc Defence: Miscellaneous Systems.} 11. f4 {[%emt 0:12:23]} cxd4 {[%emt 0:03:44]} 12. Bxd4 {[%emt 0:04:03]} Bb7 {[%emt 0:07:30] The position is equal.} 13. g4 {[%emt 0:10:51][%cal Bg3g4,Bg4g5][%mdl 32]} Nc5 {[%emt 0:16:25]} 14. Ng3 {[%emt 0:01:17] [#]} b5 $146 {[%emt 0:01:01]} ({Black should play} 14... Ne6 $11) ({Predecessor:} 14... e6 15. Kh2 b5 16. g5 Ne8 17. Bxg7 Nxg7 18. axb5 axb5 19. b4 Na6 20. Nxb5 Nxb4 21. Nxd6 Nxc2 22. Qxc2 Qxd6 {½-½ (27) Crispin Ferreras,D (2165)-Rodriguez Mejia,E (1813) Santo Domingo 2019}) 15. g5 {[%emt 0:03:23]} Nfd7 {[%emt 0:01:40] And now ...e5 would win.} 16. Bxg7 {[%emt 0:00:23]} Kxg7 {[%emt 0:00:04]} 17. axb5 {[%emt 0:01:22]} axb5 {[%emt 0:44:35]} 18. b4 {[%emt 0:05:56]} (18. Nxb5 Qb6 19. Nc3 (19. Qd4+ $2 e5 $19) 19... Nb3+ 20. Kh2 Nxa1 21. Qxa1 Kg8 $17) 18... Ne6 {[%emt 0:00:00]} (18... Na4 $11 {is superior.} 19. Nxb5 (19. Nxa4 bxa4 20. Qd4+ e5 $14) 19... Ba6) 19. Nd5 {[%emt 0:02:16]} (19. Nxb5 $2 Qb6+ 20. Kh1 Qxb5 $19) 19... Nc7 {[%emt 0:00:00]} 20. Ne3 {[%emt 0:15:56]} e5 $1 {[%emt 0:00:00]} 21. Qxd6 {[%emt 0:08:57]} Ne6 {[%emt 0:00:00]} (21... exf4 $11 {and Black has nothing to worry.} 22. Qxf4 (22. Rxf4 Ne6 $14) 22... Ne6) 22. f5 $36 {[%emt 0:04:08][%cal Bf4f5,Bf5f6][%mdl 2080] Black is under strong pressure.} (22. fxe5 $6 Qxg5 23. Ra3 (23. Ng4 Rbd8 $17) 23... Bc8 $14) 22... Nxg5 {[%emt 0:00:00]} (22... Nf4 {was called for.}) 23. h4 {[%emt 0:00:41]} Nxe4 {[%emt 0:00:00]} 24. Nxe4 {[%emt 0:01:22] Dancing on a razor blade.} (24. Bxe4 Qxh4 25. Rf3 (25. f6+ $2 Kg8 $19) 25... Bxe4 26. fxg6 hxg6 27. Nxe4 Qxe4 $16) 24... Bxe4 {[%emt 0:00:00]} 25. Bxe4 {[%emt 0:00:09]} Qxh4 {[%emt 0:00:00]} 26. Qxd7 {[%emt 0:09:16]} Qxe4 {[%emt 0:00:00]} 27. f6+ {[%emt 0:00:04]} Kh8 {[%emt 0:02:11]} 28. Qh3 {[%emt 0:00:18]} Rbc8 {[%emt 0:02:41]} 29. Rf2 {[%emt 0:04:09]} (29. Qh6 $142 {[%csl Gf6][%cal Rh6g7]} Rg8 30. Rf2) 29... h5 {[%emt 0:00:30]} 30. Ra3 {[%emt 0:03:25]} (30. Qg3 $1 $18 {[%cal Rg3g5] and the rest is easy. Strongly threatening Qg5.} Rc3 31. Re1 (31. Rf3 Kh7 $11)) 30... Qxb4 {[%emt 0:00:33] [#]} (30... Ra8 $16 31. Ng2 Qxb4) 31. Rb3 $2 {[%emt 0:00:06]} (31. Qg3 $1 $18 {[%cal Rg3g5] Qg5! is the strong threat.} Qe1+ (31... Rfd8 32. Qg5) 32. Kg2) 31... Qd4 {[%emt 0:00:32]} (31... Qe1+ $16 32. Rf1 Qe2) 32. Rd3 {[%emt 0:00:18]} ({Weaker is} 32. Rxb5 Rc3 33. Re2 (33. Rb3 Rfc8 $11) 33... Ra8 $11) 32... Qe4 {[%emt 0:00:23] [#]} 33. Qg2 $2 {[%emt 0:02:18]} (33. Qg3 $1 $18 {[%cal Rg3g5] Black must now prevent Qg5.} Ra8 34. Qg5) 33... Qh4 {[%emt 0:00:37][%mdl 8192] [#]} (33... Qxg2+ $11 34. Kxg2 Rfd8) 34. Nf5 $1 {[%emt 0:01:05][%mdl 512]} Qxf6 {[%emt 0:00:15]} 35. Nd6 $2 {[%emt 0:00:03]} (35. Rd6 Qxd6 36. Nxd6) 35... Qe6 {[%emt 0:00:10]} 36. Nxc8 {[%emt 0:00:06]} Rxc8 {[%emt 0:00:04]} 37. Qg5 {[%emt 0:00:59]} Kg8 $2 {[%emt 0:01:31]} (37... Kh7 38. Rf6 Qe7) 38. Rf6 {[%emt 0:02:08]} Qg4+ {[%emt 0:00:31]} 39. Qxg4 {[%emt 0:00:06]} hxg4 {[%emt 0:00:03]} 40. Rd7 {[%emt 0:00:10]} Rf8 {[%emt 0:00:50]} 41. Rb6 {[%emt 0:30:19]} Re8 {[%emt 0:04:18]} 42. Rbb7 {[%emt 0:00:00]} f5 {[%emt 0:01:21]} 43. Rg7+ {[%emt 0:00:00]} Kh8 {[%emt 0:00:03]} 44. Rh7+ {[%emt 0:00:00]} Kg8 {[%emt 0:00:06]} 45. Rbg7+ {[%emt 0:00:00] Weighted Error Value: White=0.53/Black=0.65} 1-0

[Event "16th Serbian-ch Women 2022"]
[Site "Bajina Basta"]
[Date "2022.12.10"]
[Round "5.5"]
[White "Gajcin, Marina"]
[Black "Manakova, Maria"]
[Result "1/2-1/2"]
[ECO "B51"]
[WhiteElo "2219"]
[BlackElo "2160"]
[Annotator "TA"]
[PlyCount "246"]
[EventDate "2022.12.06"]
[EventType "tourn"]
[EventCountry "SRB"]
[SourceTitle "playchess.com"]
[Source "ChessBase"]
[SourceQuality "1"]
[TimeControl "40/5400+30:1800+30"]

{[%evp 23,246,-35,-35,-82,-71,-79,-71,-62,-37,-51,-62,-79,-9,-8,-10,-4,-8,-17,-25,-56,-16,-16,-13,-16,0,0,0,-46,-50,-37,-50,-75,-69,-90,-70,-79,-42,-47,-45,-50,-50,-43,-39,-48,-45,-60,-66,-76,0,-72,0,-70,-10,-58,0,0,0,0,0,-23,-6,-6,0,-20,0,-35,-41,-70,-18,-17,-9,-51,-36,-50,-12,-55,-47,-77,-58,-60,-8,-19,-10,-20,-6,-45,-47,-50,-47,-69,-4,-8,0,-57,-51,-79,-78,-85,-85,-93,-85,-85,-85,-86,-83,-87,-85,-85,-85,-85,-85,-85,-80,-84,-83,-172,-173,-166,-99,-108,-106,-110,-93,-121,-124,-119,-108,-121,-114,-124,-126,-119,-92,-92,-91,-91,-88,-117,-106,-107,-91,-89,0,-76,-76,-76,-76,-76,-76,-76,-76,-76,-76,-76,0,-28,-41,-76,-76,-76,-76,-76,-76,-76,-36,-36,-36,-44,-10,-10,0,0,0,0,0,0,0,0,0,0,0,0,0,0,0,0,0,0,0,0,0,0,0,0,0,0,0,0,0,0,0,0,0,0,0,0,0,0,0,0,0,0,0,0,0,0,0,0,0,0,0,0,0,0,0]} 1. e4 {[%emt 0:00:03]} c5 {[%emt 0:00:05]} 2. Nf3 {[%emt 0:00:18]} Nc6 {[%emt 0:00:04]} 3. Bb5 {[%emt 0:00:12]} d6 {[%emt 0:00:09]} 4. e5 {[%emt 0:10:43]} Bd7 {[%emt 0:03:00]} 5. exd6 {[%emt 0:10:16]} e6 {[%emt 0:01:25]} 6. O-O {[%emt 0:08:08]} Bxd6 {[%emt 0:00:30]} 7. c3 {[%emt 0:05:17]} Nf6 {[%emt 0:05:55]} 8. d4 {[%emt 0:06:24]} Qc7 {[%emt 0:18:23]} 9. Na3 {[%emt 0:11:08]} cxd4 {[%emt 0:11:48]} 10. cxd4 {[%emt 0:05:11]} a6 {[%emt 0:07:10]} 11. Be2 {[%emt 0:03:24]} b5 {[%emt 0:00:48]} 12. Nc2 {[%emt 0:09:22]} O-O {[%emt 0:00:53]} 13. Bd3 {[%emt 0:08:03]} (13. Bd2 $15 {is more appropriate.}) 13... h6 {[%emt 0:02:54]} 14. Ne3 {[%emt 0:01:29]} Nb4 {[%emt 0:01:17]} 15. Bb1 {[%emt 0:00:25]} Rac8 {[%emt 0:13:27]} 16. Bd2 {[%emt 0:01:19]} Bc6 {[%emt 0:02:54]} 17. Ne5 {[%emt 0:03:59]} Rfd8 {[%emt 0:04:16]} (17... Bb7 $17 {...Nc6 is the strong threat.} 18. a4 Nc6 19. axb5 axb5) 18. Qe1 $1 $11 {[%emt 0:01:58]} Qe7 {[%emt 0:06:10]} (18... Nfd5 {keeps more tension.} 19. Nxd5 Nxd5 20. Ba5 Nb6) 19. a3 $1 {[%emt 0:01:08]} Nbd5 {[%emt 0:00:05]} 20. Nxc6 {[%emt 0:00:41]} Rxc6 {[%emt 0:00:04]} 21. g3 {[%emt 0:01:03]} Qd7 {[%emt 0:02:07]} (21... Bc7 $5 {[%cal Rc7b6]}) 22. Qe2 {[%emt 0:01:13]} Bc7 {[%emt 0:02:37]} 23. a4 {[%emt 0:01:44]} bxa4 {[%emt 0:01:14]} 24. Rxa4 {[%emt 0:00:47]} Rb6 {[%emt 0:02:50]} 25. Ra2 {[%emt 0:01:38]} (25. Nxd5 $11 {was preferrable.} Qxa4 26. Nxf6+ (26. Nxc7 Rxb2 27. Qe3 Rb7 $11) (26. Nxb6 Bxb6 27. Bc3 Bxd4 $15) 26... gxf6 27. Qh5) 25... Nb4 $15 {[%emt 0:01:55]} 26. Bxb4 {[%emt 0:01:24]} Rxb4 {[%emt 0:00:04]} 27. Nc2 {[%emt 0:00:48]} Ra4 {[%emt 0:00:17]} 28. Ra3 {[%emt 0:02:43]} Rxa3 {[%emt 0:01:44]} 29. bxa3 {[%emt 0:00:01]} Qa4 {[%emt 0:00:42]} 30. Ba2 {[%emt 0:03:03]} Rb8 {[%emt 0:04:23]} 31. Bc4 {[%emt 0:00:43]} Rb2 {[%emt 0:01:36]} 32. Rc1 {[%emt 0:00:07]} a5 {[%emt 0:00:46]} 33. Qd3 {[%emt 0:00:21]} Bd6 {[%emt 0:00:59]} 34. Qc3 {[%emt 0:00:40]} Rb8 {[%emt 0:00:27]} 35. Ba2 {[%emt 0:01:20]} Ne4 {[%emt 0:02:00]} (35... h5 $17) 36. Qe3 {[%emt 0:00:22]} (36. Qd3 $1 $11 {keeps the balance.} Nf6 37. Rb1) 36... Nf6 {[%emt 0:00:45]} (36... Ng5 {looks sharper.} 37. Qc3 Qb5 38. Ne3 Qe2) 37. Qc3 $1 {[%emt 0:00:31]} ({Much weaker is} 37. Bxe6 fxe6 38. Qxe6+ Kh8 39. Qxd6 Rc8 $17) 37... Ra8 {[%emt 0:01:39]} (37... h5 $15) 38. Rb1 {[%emt 0:00:41]} (38. Bb3 $11 Qb5 39. a4) 38... Qd7 {[%emt 0:00:04]} (38... Ne4 $15 39. Qd3 Rc8 40. Qxe4 Qxc2 41. Qxc2 Rxc2) 39. Ne3 $11 {[%emt 0:00:40]} Be7 {[%emt 0:01:12]} 40. Rd1 {[%emt 0:00:36]} Qd6 {[%emt 0:00:44]} 41. Nc4 {[%emt 0:09:06]} Qc6 {[%emt 0:06:47]} 42. Qd3 {[%emt 0:04:49]} Qe4 {[%emt 0:07:14]} 43. Qd2 {[%emt 0:04:09]} Qf3 {[%emt 0:05:27]} 44. Qc2 {[%emt 0:01:33]} (44. Qd3 {simplifies} Qxd3 45. Rxd3 a4 46. Ne3) 44... Rc8 {[%emt 0:03:42]} (44... Bxa3 $2 45. Rd3 Qf5 46. Nxa3 $18) 45. Re1 {[%emt 0:02:19]} Nh7 {[%emt 0:06:16]} (45... Bxa3 $2 46. Re3 Qg4 47. Rxa3 $18) (45... Nd5 $15 46. Bb1 g6) 46. Re3 {[%emt 0:03:15]} Qc6 {[%emt 0:00:14]} 47. h4 {[%emt 0:01:25]} (47. Qd3 {is interesting.} Nf6 48. Ne5 Qa8 49. Re1) 47... Nf6 {[%emt 0:00:06]} 48. Qd3 {[%emt 0:01:13]} Nd5 {[%emt 0:00:33]} 49. Re1 {[%emt 0:00:53]} Qa6 {[%emt 0:00:52]} 50. Rb1 {[%emt 0:01:46]} a4 {[%emt 0:00:35]} 51. Rb2 {[%emt 0:01:22]} Qa7 {[%emt 0:01:41]} (51... g6 $15) 52. Bb1 $11 {[%emt 0:00:40]} Nf6 {[%emt 0:00:07]} 53. Bc2 {[%emt 0:02:53]} (53. Ne5 {with more complications.} Rc1+ 54. Kg2 Qa8+ 55. f3) 53... Qa6 {[%emt 0:01:03]} 54. Nb6 {[%emt 0:00:20]} (54. Ne5 $5 {[%cal Rd3a6]} Qxd3 55. Bxd3 $11) 54... Qxd3 {[%emt 0:00:17]} 55. Bxd3 {[%emt 0:00:00]} Rc1+ {[%emt 0:01:28]} 56. Kg2 {[%emt 0:00:25]} Bxa3 {[%emt 0:00:11]} (56... Rd1 $15 57. Bb5 Rxd4) 57. Ra2 $11 {[%emt 0:00:53]} Rc3 {[%emt 0:00:47]} 58. Bc2 {[%emt 0:00:38]} (58. Be2 $11 Bf8 59. Rxa4) 58... Bf8 {[%emt 0:01:02]} 59. Nxa4 {[%emt 0:01:17]} Rc4 {[%emt 0:00:05]} 60. Nb6 {[%emt 0:00:41]} Rxd4 {[%emt 0:00:06]} 61. Ra8 {[%emt 0:00:38]} g6 {[%emt 0:00:20]} 62. Rc8 {[%emt 0:00:26]} Kg7 {[%emt 0:00:28]} 63. Nc4 {[%emt 0:00:12]} Nd5 {[%emt 0:01:23]} 64. Kf3 {[%emt 0:00:49]} Nb4 {[%emt 0:00:16]} 65. Ba4 {[%emt 0:00:18]} Be7 {[%emt 0:00:52]} 66. Ke2 {[%emt 0:00:56]} Nd5 {[%emt 0:00:26]} 67. Bb3 {[%emt 0:00:21]} Re4+ {[%emt 0:00:39]} 68. Kf3 {[%emt 0:00:30]} Re1 {[%emt 0:00:12]} 69. Ne3 {[%emt 0:00:27]} (69. Rb8 $17 {was worth a try.}) 69... Nxe3 $19 {[%emt 0:00:15]} 70. fxe3 {[%emt 0:00:01] [#]} h5 {[%emt 0:00:49]} (70... Bd6 $1 $19 {[%cal Od6g3]} 71. Bc4 Rg1) 71. Rc7 {[%emt 0:00:22]} Kf6 {[%emt 0:00:07]} 72. Ba4 {[%emt 0:00:30]} Bd6 {[%emt 0:00:38]} 73. Rd7 {[%emt 0:01:14]} Bc5 {[%emt 0:00:52]} 74. Rd3 {[%emt 0:00:01]} Rf1+ {[%emt 0:00:54]} 75. Kg2 {[%emt 0:01:45]} Ra1 {[%emt 0:00:07]} 76. Be8 {[%emt 0:00:00]} Ke7 {[%emt 0:00:28]} 77. Bb5 {[%emt 0:00:00]} f5 {[%emt 0:00:18]} 78. Rc3 {[%emt 0:00:40]} Ra2+ {[%emt 0:00:28]} 79. Kf3 {[%emt 0:00:28]} Bd6 {[%emt 0:01:14]} 80. Bc4 {[%emt 0:00:40]} Ra1 {[%emt 0:00:13]} 81. Kf2 {[%emt 0:00:38]} Bb4 {[%emt 0:00:16]} 82. Rb3 {[%emt 0:00:26]} Bd6 {[%emt 0:00:47]} (82... Ra4 $17 83. Be2 Kf6) 83. Rb7+ {[%emt 0:00:18]} (83. Rc3 $1 $11 {remains equal.}) 83... Kf6 $17 {[%emt 0:00:07]} 84. Rb6 {[%emt 0:00:27]} Rc1 {[%emt 0:00:20]} 85. Rxd6 {[%emt 0:00:46]} Rxc4 {[%emt 0:00:05]} 86. Ra6 {[%emt 0:00:17]} Rc2+ {[%emt 0:00:21]} 87. Kf3 {[%emt 0:00:08]} Rd2 {[%emt 0:00:07]} 88. Rb6 {[%emt 0:00:22]} Ke5 {[%emt 0:00:40]} ({Black should play} 88... Rd3 $17) 89. Rb5+ $1 $11 {[%emt 0:00:16]} Rd5 {[%emt 0:00:17]} 90. Rb8 {[%emt 0:00:19]} Rd6 {[%emt 0:00:30]} 91. Rg8 {[%emt 0:01:36]} Kf6 {[%emt 0:00:07]} 92. Rf8+ {[%emt 0:00:26]} Ke7 {[%emt 0:00:06]} 93. Ra8 {[%emt 0:00:29]} e5 {[%emt 0:00:14]} 94. Ra1 {[%emt 0:00:36]} Kf6 {[%emt 0:00:18]} 95. Rb1 {[%emt 0:00:29]} g5 {[%emt 0:00:11]} 96. Rb8 {[%emt 0:00:33]} e4+ {[%emt 0:02:24]} 97. Ke2 {[%emt 0:00:05]} gxh4 {[%emt 0:00:10]} 98. gxh4 {[%emt 0:00:08]} Kg7 {[%emt 0:01:16]} 99. Rb7+ {[%emt 0:00:28]} Kg6 {[%emt 0:00:16]} 100. Rb8 {[%emt 0:00:42]} Rf6 {[%emt 0:01:48]} 101. Rg8+ {[%emt 0:00:34]} Kh7 {[%emt 0:00:18]} 102. Re8 {[%emt 0:00:57]} Ra6 {[%emt 0:00:26]} 103. Kf2 {[%emt 0:00:33]} Rg6 {[%emt 0:00:51]} 104. Re7+ {[%emt 0:00:30]} Rg7 {[%emt 0:00:10]} 105. Re5 {[%emt 0:00:11]} Rg4 {[%emt 0:00:19]} 106. Rxf5 {[%emt 0:00:06]} Rxh4 {[%emt 0:00:13]} 107. Kg3 {[%emt 0:00:35]} Rg4+ {[%emt 0:00:19]} 108. Kh3 {[%emt 0:00:16]} Kg6 {[%emt 0:00:46]} 109. Rf8 {[%emt 0:00:52]} Kg7 {[%emt 0:00:20]} 110. Rf5 {[%emt 0:00:52]} Kg6 {[%emt 0:01:19]} 111. Rf8 {[%emt 0:00:15]} Rg5 {[%emt 0:00:14]} 112. Kh4 {[%emt 0:00:49]} Ra5 {[%emt 0:00:40]} 113. Rf4 {[%emt 0:00:36]} Ra4 {[%emt 0:00:19]} 114. Rf8 {[%emt 0:00:29]} Ra3 {[%emt 0:00:32]} 115. Rg8+ {[%emt 0:00:16]} Kf6 {[%emt 0:00:27]} 116. Kxh5 {[%emt 0:00:48]} Rxe3 {[%emt 0:00:07]} 117. Kg4 {[%emt 0:00:20]} Ke5 {[%emt 0:00:56]} 118. Re8+ {[%emt 0:00:09]} Kd4 {[%emt 0:00:06]} 119. Rd8+ {[%emt 0:00:26]} Kc3 {[%emt 0:00:13]} 120. Kf4 {[%emt 0:00:23]} Re1 {[%emt 0:01:19]} 121. Rc8+ {[%emt 0:00:34]} Kd3 {[%emt 0:00:31]} 122. Rd8+ {[%emt 0:00:07]} Kc3 {[%emt 0:00:16]} 123. Rc8+ {[%emt 0:00:03]} Kd3 {[%emt 0:00:15]} 1/2-1/2

[Event "16th Serbian-ch Women 2022"]
[Site "Bajina Basta"]
[Date "2022.12.11"]
[Round "6.1"]
[White "Eric, Jovana"]
[Black "Manakova, Maria"]
[Result "0-1"]
[ECO "B01"]
[WhiteElo "2245"]
[BlackElo "2160"]
[Annotator "TA"]
[PlyCount "88"]
[EventDate "2022.12.06"]
[EventType "tourn"]
[EventCountry "SRB"]
[SourceTitle "playchess.com"]
[Source "ChessBase"]
[SourceQuality "1"]
[TimeControl "40/5400+30:1800+30"]

{[%evp 10,87,39,18,30,0,0,-6,33,39,35,37,32,0,0,-27,-18,-19,-13,-18,-24,-33,0,-18,-34,-106,-6,-6,0,-8,0,0,133,-27,56,-10,0,0,0,0,0,0,30,52,44,-75,0,-7,0,-501,-449,-514,-218,-333,-258,-324,-324,-286,-334,-384,-377,-721,-630,-490,-368,-717,-252,-572,-583,-1627,-1577,-29980,-29981,-29980,-29981,-29997,-29998,-29998,-29999,-29999]} 1. e4 {[%emt 0:00:04]} d5 {[%emt 0:00:12]} 2. exd5 {[%emt 0:00:14]} Qxd5 {[%emt 0:00:03]} 3. Nc3 {[%emt 0:00:14]} Qa5 {[%emt 0:00:03]} 4. Bc4 {[%emt 0:00:23]} Nf6 {[%emt 0:00:24]} 5. d3 {[%emt 0:00:33]} Bg4 {[%emt 0:00:35]} 6. f3 {[%emt 0:01:24]} Bd7 {[%emt 0:05:07] B01: Scandinavian Defence.} 7. Be3 {[%emt 0:04:28]} e6 {[%emt 0:02:37]} 8. Qd2 {[%emt 0:01:16]} Bb4 {[%emt 0:02:36] The position is equal.} 9. Nge2 {[%emt 0:02:17] [#]} Nd5 $146 {[%emt 0:04:24]} ({Predecessor:} 9... Nc6 10. O-O O-O 11. a3 Bd6 12. Bb5 Rfd8 13. Nc1 Bb4 14. axb4 Qxa1 15. N1a2 Qxb2 {1-0 (40) Herrou,C-Lagunes,J (2095) France 1999}) 10. Bxd5 {[%emt 0:02:56]} exd5 {[%emt 0:00:24]} 11. O-O-O {[%emt 0:00:35]} Nc6 {[%emt 0:03:47]} 12. d4 {[%emt 0:00:47]} Bf5 {[%emt 0:03:30]} 13. g4 {[%emt 0:04:18]} Bg6 {[%emt 0:02:23]} 14. h4 {[%emt 0:08:29]} h5 {[%emt 0:13:22]} 15. Bg5 {[%emt 0:04:45]} (15. Rdg1 {simplifies} O-O-O 16. gxh5 Bxc3 17. Nxc3 Rxh5 18. a3) 15... f6 $1 {[%emt 0:01:03]} 16. gxh5 {[%emt 0:08:06]} (16. Nf4 Bf7 17. Rde1+ Kf8 18. gxh5 Bxc3 19. bxc3 Qxa2 $17) 16... Bxh5 {[%emt 0:03:49] A strong pair of Bishops.} 17. Qe3+ {[%emt 0:03:05]} (17. Bf4 $1 $15) 17... Kd7 {[%emt 0:05:23]} (17... Kf7 $1 $17 {Threatens to win with ...Rhe8.} 18. a3 Bxc3 19. Nxc3 Rae8) 18. Bf4 $11 {[%emt 0:07:06]} Rae8 {[%emt 0:05:11] Inhibits a3.} 19. Qd3 {[%emt 0:00:51]} Bf7 {[%emt 0:05:09] Active counter play!} 20. a3 {[%emt 0:03:22]} Re6 {[%emt 0:10:19] [#]} 21. Nb1 $2 {[%emt 0:18:51]} (21. Nxd5 $1 $16 Rxe2 22. Nxb4 (22. Qxe2 Bxd5 23. axb4 Qa1+ 24. Kd2 Qxb2 $14)) 21... Bg8 {[%emt 0:08:31]} 22. Ng3 {[%emt 0:05:26]} (22. axb4 $2 Nxb4 23. Qb3 Na2+ $19) (22. Qg6 $14 Bf8 23. Qg4) 22... Bh7 {[%emt 0:02:15]} (22... Kc8 {simplifies} 23. Qg6 Bf8 24. Nf5 Nd8) 23. Qb3 {[%emt 0:00:05]} (23. axb4 $2 Nxb4 24. Qc3 Na2+ 25. Kd2 Nxc3 $19) 23... Bd6 {[%emt 0:01:28]} 24. Bxd6 {[%emt 0:01:16]} Rxd6 {[%emt 0:00:11]} 25. h5 {[%emt 0:02:51][%cal Bh4h5,Bh5h6][%mdl 32]} Re8 {[%emt 0:03:34]} 26. h6 {[%emt 0:02:22]} g5 {[%emt 0:02:32][%cal Bg7g5,Bg5g4][%mdl 32]} 27. Rd2 {[%emt 0:05:42] [#]} (27. Qxb7 $2 Rb8 $19) (27. f4 $14 {stays ahead.}) 27... b5 {[%emt 0:03:24]} ({Black should play} 27... Qa6 $1 $17) 28. Nh5 {[%emt 0:03:48]} b4 {[%emt 0:00:41]} 29. a4 $2 {[%emt 0:01:00][%mdl 8192] Black keeps a firm grip on the game.} (29. Ng7 $11 {and White stays safe.} Rb8 30. a4) 29... Qb6 $19 {[%emt 0:04:01] White must now prevent ...Na5.} 30. a5 {[%emt 0:03:23]} Qxa5 {[%emt 0:03:13]} (30... Nxa5 $142 31. Qa4+ Kd8) 31. f4 {[%emt 0:00:18]} (31. Ng7 {is the only way for White.} Re7 32. f4) 31... g4 {[%emt 0:01:28]} 32. Qg3 {[%emt 0:01:34]} f5 {[%emt 0:00:51]} 33. Qh4 {[%emt 0:00:21]} Ree6 {[%emt 0:01:29] Against Nf6+} (33... Rxh6 34. Nf6+ Rxf6 35. Qxf6 $18) 34. Qg5 {[%emt 0:00:52] Prevents b3.} Kc8 {[%emt 0:00:45]} (34... Rxh6 $2 {is the wrong capture.} 35. b3 $19) 35. Ng7 $2 {[%emt 0:00:19] Inhibits b3.} (35. Qg7 Rxh6 36. Ng3 Rxh1+ 37. Nxh1) 35... Re4 {[%emt 0:01:59] And now ...b3 would win.} ({Less strong is} 35... Rf6 36. Ne8 Rfe6 37. Nxd6+ cxd6 38. Rdd1 $16 (38. Qg7 Qc7 $16)) 36. Nxf5 {[%emt 0:00:29]} Rde6 {[%emt 0:00:03][%cal Ob4b3,Bd6e6,Be6e7,Be7e1][%mdl 32]} 37. Qxg4 $2 {[%emt 0:01:01]} (37. Ng3 Re1+ 38. Rxe1 Rxe1+ 39. Rd1 Rxd1+ 40. Kxd1) 37... Kb7 $2 {[%emt 0:00:09]} (37... b3 38. Ng3 Re3) 38. Ng7 $2 {[%emt 0:00:45]} (38. Ng3 {nothing else works.} Re1+ 39. Rxe1 Rxe1+ 40. Rd1) 38... Re7 {[%emt 0:01:27] aiming for ...b3.} 39. Nh5 {[%emt 0:01:24]} Nxd4 {[%emt 0:00:29] ( -> ...Re1+)} 40. Nf6 {[%emt 0:02:08]} Re1+ {[%emt 0:00:18] Black mates.} 41. Rxe1 {[%emt 0:31:20]} Rxe1+ {[%emt 0:30:04]} 42. Rd1 {[%emt 0:00:05] [#]} Nb3+ $1 {[%emt 0:00:00][%mdl 512]} 43. cxb3 {[%emt 0:00:00]} Qc5+ {[%emt 0:00:00]} 44. Nc3 {[%emt 0:00:00]} Qe3# {[%emt 0:00:00] Weighted Error Value: White=0.94/Black=0.45} 0-1

[Event "16th Serbian-ch Women 2022"]
[Site "Bajina Basta"]
[Date "2022.12.11"]
[Round "6.2"]
[White "Drljevic, Ljilja"]
[Black "Gajcin, Marina"]
[Result "0-1"]
[ECO "A45"]
[WhiteElo "2175"]
[BlackElo "2219"]
[Annotator "TA"]
[PlyCount "50"]
[EventDate "2022.12.06"]
[EventType "tourn"]
[EventCountry "SRB"]
[SourceTitle "playchess.com"]
[Source "ChessBase"]
[SourceQuality "1"]
[TimeControl "40/5400+30:1800+30"]

{[%evp 9,50,42,37,13,33,0,0,-19,-20,-8,0,-108,-75,-93,-93,-91,-70,-159,-165,-387,-177,-191,-165,-241,-197,-310,-318,-400,-399,-390,-375,-1321,-1309,-29982,-29983,-29987,-29988,-29993,-29989,-29989,-29990,-29990,-29991]} 1. d4 {[%emt 0:00:02]} Nf6 {[%emt 0:00:07]} 2. Bg5 {[%emt 0:00:05]} c5 {[%emt 0:00:08]} 3. dxc5 {[%emt 0:01:24]} Na6 {[%emt 0:00:25]} 4. Bxf6 {[%emt 0:05:47]} gxf6 {[%emt 0:00:46]} 5. e4 {[%emt 0:03:17]} e6 {[%emt 0:18:28] [#]} 6. Nd2 $146 {[%emt 0:10:35] A45: Trompowsky Attack.} ({Predecessor:} 6. c3 Nxc5 7. Nd2 b5 8. b4 Na4 9. Qb3 a6 10. c4 Qb6 11. c5 Qc7 12. Ne2 {0-1 (28) Engels,M-Koch,T (2315) Mittelrhein 1994}) 6... Bxc5 {[%emt 0:11:19]} 7. Nh3 {[%emt 0:09:15]} Qb6 {[%emt 0:17:50]} 8. Nc4 {[%emt 0:05:37] The position is equal.} Qc6 {[%emt 0:02:49]} 9. Qf3 {[%emt 0:05:12]} b5 {[%emt 0:09:37] Against c3} 10. Ne3 {[%emt 0:21:39]} (10. Qxf6 $11 {keeps the balance.} Qxe4+ 11. Ne3) 10... Bb4+ $17 {[%emt 0:03:38]} 11. Kd1 {[%emt 0:01:13] [#]} Be7 {[%emt 0:02:33]} 12. Bd3 {[%emt 0:03:59]} Bb7 {[%emt 0:01:51]} 13. Re1 {[%emt 0:01:11]} ({White should try} 13. Qh5 $15) 13... Nc5 {[%emt 0:07:03]} 14. Ng4 $2 {[%emt 0:03:48]} (14. Ke2) 14... Nxd3 {[%emt 0:08:11]} (14... f5 $142 15. Nh6 Rc8) 15. cxd3 $19 {[%emt 0:01:31]} Rc8 {[%emt 0:00:44][%csl Gc8][%cal Rc6c2] [#]} 16. Re2 {[%emt 0:00:52] Prevents Qc2+.} (16. Ne3 $142) 16... f5 $1 {[%emt 0:01:50]} 17. Nh6 {[%emt 0:00:41]} (17. Ne3 $142) 17... Rf8 {[%emt 0:01:38]} 18. Qg3 {[%emt 0:06:42]} fxe4 {[%emt 0:00:16]} 19. dxe4 {[%emt 0:03:12]} Qc4 {[%emt 0:01:12]} 20. e5 $2 {[%emt 0:09:15]} (20. Qb3 f5 21. Qxc4 bxc4 22. exf5) 20... Bb4 {[%emt 0:03:54] ( -> ...Qd4+)} 21. Nf4 {[%emt 0:05:43]} Be4 {[%emt 0:00:44] Black mates.} 22. Qe3 {[%emt 0:00:00]} Bc2+ {[%emt 0:00:44] This pair of bishops is nice.} 23. Kc1 {[%emt 0:00:00]} Bd3+ {[%emt 0:00:24]} 24. Kd1 {[%emt 0:00:00]} Bxe2+ {[%emt 0:00:13]} 25. Qxe2 {[%emt 0:00:00]} Qxf4 {[%emt 0:00:05] Black took control after the opening.   Weighted Error Value: White=1.00/Black=0.14 (very precise)} 0-1